Cogmind - Beta 16 @@@ ROGUE MODE // 2025.12.15 @ 14:55:04 Player: TheDoorMatt Result: Self-destructed Performance ------------- Evolutions (2) 1000 Regions Visited (5) 1000 Robots Destroyed (14) 70 Value Destroyed (321) 321 Prototype IDs (0) 0 Alien Tech Used (0) 0 Bonus (0) 0 TOTAL SCORE: 2391 Bonus ------- None Cogmind --------- Core Integrity 398/550 Matter 169/300 Energy 254/265 System Corruption 14% Temperature Cool (0) Movement Flying (94) Ox1 Location -8/Materials Parts ------- > --- POWER (2) -------- Improved Ion Engine > --- PROPULSION (3) --- Flight Unit Surge Thruster > --- UTILITY (4) ------ Heat Sink > --- WEAPON (2) ------- (None) > --- INVENTORY (5) ---- Aluminum Leg Aluminum Leg Flight Unit VTOL Module Minigun Peak State ------------ > --- POWER ------------ Improved Ion Engine > --- PROPULSION ------- Flight Unit Flight Unit VTOL Module > --- UTILITY ---------- Heat Sink Hardened Medium Armor Plating > --- WEAPON ----------- Mining Laser Heavy Mace > --- INVENTORY -------- Aluminum Leg Aluminum Leg Flight Unit Minigun Grenade Launcher [Rating: 14] Favorites ----------- Power Light Ion Engine Engine Light Ion Engine Propulsion Flight Unit Leg Aluminum Leg Wheel Compact Wheel Flight Unit Flight Unit Utility Small Storage Unit Device Seismic Detector Storage Small Storage Unit Protection Hardened Medium Armor Plating Weapon Light Assault Rifle Ballistic Gun Light Assault Rifle Launcher Grenade Launcher Special Weapon Mining Laser Impact Weapon Heavy Mace Build | -11 -10 -10 -9 -9 -8 ------- Run | Yrd Mat Min Mat Min Mat Slots Evolved 4 | . . . 2 . 2 Power 1 | . . . . . 1 Propulsion 1 | . . . 1 . . Utility 2 | . . . 1 . 1 Weapon . | . . . . . . Parts Attached 30 | 6 1 5 9 2 7 Power 3 | 1 . 1 . . 1 Engine 3 | 1 . 1 . . 1 Core . | . . . . . . Reactor . | . . . . . . Propulsion 17 | 2 . 2 9 1 3 Treads . | . . . . . . Leg 4 | . . 2 2 . . Wheel 2 | 2 . . . . . Hover . | . . . . . . Flight 11 | . . . 7 1 3 Utility 4 | 2 . . . . 2 Device 2 | 1 . . . . 1 Storage 1 | 1 . . . . . Processor . | . . . . . . Hackware . | . . . . . . Protection 1 | . . . . . 1 Artifact . | . . . . . . Weapon 6 | 1 1 2 . 1 1 Energy Gun . | . . . . . . Energy Cannon . | . . . . . . Ballistic Gun 3 | 1 . 2 . . . Ballistic Cannon . | . . . . . . Launcher 1 | . . . . 1 . Special Weapon 1 | . 1 . . . . Impact Weapon 1 | . . . . . 1 Slashing Weapon . | . . . . . . Piercing Weapon . | . . . . . . Special Melee Weapon . | . . . . . . Unidentified Prototypes . | . . . . . . Corrupted Parts 1 | . . . . . 1 System Corruption 9 | . . . . . 9 Parts Lost 11 | . 1 2 1 . 7 Power 2 | . . 1 . . 1 Propulsion 4 | . . . 1 . 3 Utility 2 | . 1 . . . 1 Weapon 3 | . . 1 . . 2 Highest Loss Streak 6 | . 1 2 1 . 6 To Critical Strikes . | . . . . . . Average Backups 6 | 4 7 6 7 8 7 Power . | . 1 . . . . Propulsion 4 | 2 4 4 4 5 4 Utility . | . . . . . . Weapon 2 | 1 2 1 2 3 2 Tool/Special . | . . . . . . Unused Backups 7 | . . 1 3 . 3 Power . | . . . . . . Propulsion 4 | . . 1 3 . . Utility . | . . . . . . Weapon 3 | . . . . . 3 Tool/Special . | . . . . . . Average Slot Usage (%) 73 | . 83 81 77 77 54 Engine 10 | . 14 12 11 11 5 Leg 6 | . . 14 11 . . Wheel 7 | . 28 14 . . . Flight 15 | . . . 21 33 24 Device 2 | . 12 . . . 2 Storage 10 | . 14 14 11 11 5 Ballistic Gun 16 | . 14 23 22 16 3 Special Weapon 1 | . . 2 . . 5 Impact Weapon 1 | . . . . . 5 Peak Build Rating 14 | 6 6 6 9 9 14 Average Rating 7 | 4 5 5 7 8 9 On Entrance 6 | . 6 6 6 9 9 Avg Prop Armor Cover (%) 5 | . . . . . 5 Naked Turns . | . . . . . . Heaviest Build 19 | 13 13 13 10 12 19 Greatest Support 32 | 32 32 32 30 12 12 Greatest Overweight (x) 2 | 2 . . . . 2 Average Overweight (x) . | . . . . . . Largest Inventory Capacity 8 | 8 8 8 8 8 8 Average Capacity 7 | 7 8 8 8 8 6 Most Carried 8 | 7 7 8 8 8 8 Average Carried 6 | 5 7 6 7 8 6 Final Capacity 8 | 8 8 8 8 8 5 Final Carried 8 | 7 7 7 8 8 5 Class Distribution -------------------- 89% | Mutant 10% | Sprinter Dominant Class ---------------- Mutant | -10/Materials Mutant | -10/Mines Mutant | -9/Materials Sprinter | -9/Mines Mutant | -8/Materials Resources | -11 -10 -10 -9 -9 -8 ----------- Run | Yrd Mat Min Mat Min Mat Matter Collected 509 | 281 . 95 72 7 54 Remotely . | . . . . . . Salvage Created 502 | 124 . 195 72 . 111 Parts 33 | 6 . 9 8 . 10 Haulers Intercepted . | . . . . . . Recyclers Shooed 4 | . . 4 . . . Parts Field Recycled . | . . . . . . Retrieved Matter . | . . . . . . Parts Self-Destructed . | . . . . . . Prevented . | . . . . . . Parts Restored . | . . . . . . Kills | -11 -10 -10 -9 -9 -8 ------- Run | Yrd Mat Min Mat Min Mat Combat Hostiles Destroyed 11 | . . 2 4 . 5 Melee 1 | . . . . . 1 Guns 6 | . . 2 4 . . AOE 3 | . . . . . 3 Classes Destroyed 6 | 2 . 1 1 . 2 Tunneler 1 | 1 . . . . . Recycler 2 | 1 . 1 . . . Swarmer 4 | . . . 4 . . Cutter 3 | . . . . . 3 Grunt 2 | . . 2 . . . Sentry 2 | . . . . . 2 Best Kill Streak 4 | 2 . 2 4 . 3 Combat Bots Only 4 | . . 2 4 . 3 Max Kills in Single Turn 2 | 1 . 1 1 . 2 Gunslinging . | . . . . . . Exploded 2 | . . . . . 2 Melee 1 | . . . . . 1 Uniques/NPCs Destroyed . | . . . . . . Combat | -11 -10 -10 -9 -9 -8 -------- Run | Yrd Mat Min Mat Min Mat Hostile Shots Fired 83 | . 1 28 35 . 19 Missed 28 | . . 9 13 . 6 Hits 55 | . 1 19 22 . 13 Melee 5 | . . . . . 5 Projectile 50 | . 1 19 22 . 8 AOE 1 | . . . . . 1 Critical Strikes 5 | . . 1 . . 4 Damage Taken 1222 | . 48 249 234 . 691 Core 230 | . 4 52 22 . 152 Absorbed by Shields . | . . . . . . Core Remaining (%) 90 | 100 . 77 . 94 . Volleys Fired 51 | 7 . 19 15 . 10 Largest 2 | 1 . 2 2 . 1 Hottest 100 | 20 . 40 40 . 100 Shots Fired 74 | 7 . 27 30 . 10 Gun 64 | 7 . 27 30 . . Cannon . | . . . . . . Launcher 4 | . . . . . 4 Special 6 | . . . . . 6 Kinetic 64 | 7 . 27 30 . . Thermal 6 | . . . . . 6 Explosive 4 | . . . . . 4 Electromagnetic . | . . . . . . Robot Hit Streak 12 | 5 . 5 12 . 5 Robot Miss Streak 3 | 1 . 2 3 . . Penetration Max . | . . . . . . Secondary Targets . | . . . . . . Shots Hit Robots 52 | 6 . 18 21 . 7 Core Hits 26 | 3 . 9 8 . 6 Critical Kills . | . . . . . . Critical Parts Destroyed 2 | . . . . . 2 Critical Strikes 2 | . . . . . 2 Smash 2 | . . . . . 2 Melee Attacks 8 | . . . . . 8 Impact 8 | . . . . . 8 Slashing . | . . . . . . Piercing . | . . . . . . Sneak Attacks . | . . . . . . Combat Hostiles . | . . . . . . Follow-up Attacks . | . . . . . . Damage Inflicted 698 | 74 . 174 174 . 276 Guns 422 | 74 . 174 174 . . Cannons . | . . . . . . Explosions 136 | . . . . . 136 Melee 140 | . . . . . 140 Ramming . | . . . . . . Kinetic 422 | 74 . 174 174 . . Thermal . | . . . . . . Explosive 136 | . . . . . 136 Electromagnetic . | . . . . . . Impact 140 | . . . . . 140 Slashing . | . . . . . . Piercing . | . . . . . . Highest Corruption 14 | . . . . . 14 Average Corruption 8 | . . . . . 8 Corruption Purged . | . . . . . . Corruption Blocked . | . . . . . . Effects 3 | . . . . . 3 Message Errors 1 | . . . . . 1 Parts Rejected 1 | . . . . . 1 Data Loss (minor) 1 | . . . . . 1 Overload Shots . | . . . . . . Overflow Damage 68 | . . . . . 68 Projectiles . | . . . . . . Explosions 31 | . . . . . 31 Melee 37 | . . . . . 37 Knockbacks . | . . . . . . Impact . | . . . . . . Kinetic . | . . . . . . Secondary . | . . . . . . Self-Inflicted Damage 171 | . . . . . 171 Shots 3 | . . . . . 3 Rammed . | . . . . . . Targets Rammed . | . . . . . . Kicked . | . . . . . . Crushed . | . . . . . . Highest Temperature 24 | . . 17 24 . 16 Average Temperature 8 | . . 6 11 . 7 Received Heat Transfer 297 | . 6 162 84 . 45 Siege Activations . | . . . . . . Martial Activations . | . . . . . . Shielding Activations . | . . . . . . Robots Disrupted . | . . . . . . Combat Hostiles . | . . . . . . Robots Corrupted 1 | . . . . . 1 Combat Hostiles 1 | . . . . . 1 Parts Fried 2 | . . . . . 2 Impact Corruptions 2 | . . . . . 2 Robots Melted . | . . . . . . Combat Hostiles . | . . . . . . Parts Melted . | . . . . . . Heat Transferred . | . . . . . . Parts Sabotaged . | . . . . . . Parts Stolen . | . . . . . . Parts Stripped . | . . . . . . Power Chain Reactions . | . . . . . . Alert | -11 -10 -10 -9 -9 -8 ------- Run | Yrd Mat Min Mat Min Mat Maximum Alert Level . | . . . . . . Low Security (%) 100 | 100 100 100 100 100 100 Level 1 . | . . . . . . Level 2 . | . . . . . . Level 3 . | . . . . . . Level 4 . | . . . . . . Level 5 . | . . . . . . High Security . | . . . . . . Max Security . | . . . . . . Peak Influence 125 | 10 . 40 125 48 122 Initial 48 | . . . 1 48 14 Average 32 | 1 . 19 60 44 38 Influence Increases 538 | 10 . 75 215 . 238 Destroy 0b10 Robot/C 220 | . . 40 80 . 100 Destroy 0b10 Robot/NC 15 | 10 . 5 . . . Destroy Leader 50 | . . 10 10 . 30 Successful Hack 24 | . . 5 5 . 14 Disable Machine 60 | . . 15 . . 45 Destroy Structure 34 | . . . . . 34 Lose Combat Pursuer 135 | . . . 120 . 15 Influence Decreases 416 | 10 . 70 95 87 154 Entered New Map 105 | . . . 4 77 24 Time Decay 211 | 10 . 50 81 10 60 Lost Part 100 | . . 20 10 . 70 Squads Dispatched 3 | . . . . . 3 Investigation . | . . . . . . Extermination . | . . . . . . Reinforcement 3 | . . . . . 3 Assault . | . . . . . . Garrison . | . . . . . . Intercept . | . . . . . . Searches Triggered . | . . . . . . Construction Impeded . | . . . . . . Haulers Reinforced . | . . . . . . Active Scanning Responses . | . . . . . . Cargo Convoy Interrupts . | . . . . . . Stealth | -11 -10 -10 -9 -9 -8 --------- Run | Yrd Mat Min Mat Min Mat Distress Signals 3 | . 1 . . . 2 Communications Jammed . | . . . . . . Distress Signals . | . . . . . . Times Spotted 26 | . 2 2 13 . 9 Peak Tracking Total 6 | . 2 2 5 . 6 Tactical Retreats 3 | . . . 2 . 1 Traps | -11 -10 -10 -9 -9 -8 ------- Run | Yrd Mat Min Mat Min Mat Traps Triggered 1 | . 1 . . . . Indirectly . | . . . . . . Trap Hack Attempts . | . . . . . . Triggered . | . . . . . . Disarmed . | . . . . . . Reprogrammed . | . . . . . . Reused . | . . . . . . Traps Extracted . | . . . . . . Installed . | . . . . . . Triggered . | . . . . . . Machines | -11 -10 -10 -9 -9 -8 ---------- Run | Yrd Mat Min Mat Min Mat Machines Disabled 4 | . . 1 . . 3 Max in Single Turn 2 | . . 1 . . 2 Machines Repaired . | . . . . . . Machines Dismantled . | . . . . . . Machines Sabotaged . | . . . . . . Overloaded Fab Kills . | . . . . . . Hacking | -11 -10 -10 -9 -9 -8 --------- Run | Yrd Mat Min Mat Min Mat Machines Accessed 4 | . . 1 2 . 1 Terminals 4 | . . 1 2 . 1 Fabricators . | . . . . . . Repair Stations . | . . . . . . Recycling Units . | . . . . . . Scanalyzers . | . . . . . . Garrison Access . | . . . . . . Total Hacks 7 | . . 1 4 . 2 Successful 5 | . . 1 3 . 1 Failed 2 | . . . 1 . 1 Catastrophic 1 | . . . . . 1 Database Lockouts . | . . . . . . Manual . | . . . . . . Terminals 7 | . . 1 4 . 2 Fabricators . | . . . . . . Repair Stations . | . . . . . . Recycling Units . | . . . . . . Scanalyzers . | . . . . . . Garrison Access . | . . . . . . Terminal Hacks 5 | . . 1 3 . 1 Record 1 | . . . 1 . . Hauler Manifests 1 | . . . 1 . . Zone Layout 3 | . . 1 1 . 1 Fabricator Hacks . | . . . . . . Repair Station Hacks . | . . . . . . Recycling Unit Hacks . | . . . . . . Scanalyzer . | . . . . . . Garrison Access Hacks . | . . . . . . Unauthorized Hacks . | . . . . . . Terminals . | . . . . . . Fabricators . | . . . . . . Repair Stations . | . . . . . . Recycling Units . | . . . . . . Scanalyzers . | . . . . . . Garrison Access . | . . . . . . Data Cores Recovered . | . . . . . . Used . | . . . . . . Hacking Detections 2 | . . . 1 . 1 Full Trace Events . | . . . . . . Feedback Events . | . . . . . . Feedback Blocked . | . . . . . . Robot Schematics Acquired . | . . . . . . Robots Built . | . . . . . . Authchips . | . . . . . . Time . | . . . . . . Total Robot Build Rating . | . . . . . . Part Schematics Acquired . | . . . . . . Parts Built . | . . . . . . Authchips . | . . . . . . Time . | . . . . . . Total Part Build Rating . | . . . . . . Part Studies Acquired . | . . . . . . Parts Repaired . | . . . . . . Time . | . . . . . . Parts Recycled . | . . . . . . Recycled Matter . | . . . . . . Retrieved Matter . | . . . . . . Retrieved Components . | . . . . . . Parts Scanalyzed . | . . . . . . Part Schematics Acquired . | . . . . . . Parts Damaged . | . . . . . . Bothacking | -11 -10 -10 -9 -9 -8 ------------ Run | Yrd Mat Min Mat Min Mat Used RIF Installer . | . . . . . . Robots Hacked . | . . . . . . Non-combat . | . . . . . . Combat . | . . . . . . Robot Hacks Applied . | . . . . . . Relay Couplers Released . | . . . . . . Fabnet Peak Effective % . | . . . . . . Robots Rewired . | . . . . . . Allies Hacked . | . . . . . . Hacks Repelled . | . . . . . . Allies | -11 -10 -10 -9 -9 -8 -------- Run | Yrd Mat Min Mat Min Mat Total Allies . | . . . . . . Largest Group . | . . . . . . Highest-Rated Group . | . . . . . . Highest-Rated Ally . | . . . . . . Total Orders . | . . . . . . Ally Attacks . | . . . . . . Total Damage . | . . . . . . Kills . | . . . . . . Allies Corrupted . | . . . . . . Allies Melted . | . . . . . . Intel | -11 -10 -10 -9 -9 -8 ------- Run | Yrd Mat Min Mat Min Mat Active Infowar (turns) 92 | 15 77 . . . . Seismic 92 | 15 77 . . . . Robot Analysis Total . | . . . . . . Derelict Logs Recovered . | . . . . . . Drone Launches . | . . . . . . Drone Recoveries . | . . . . . . Exploration | -11 -10 -10 -9 -9 -8 ------------- Run | Yrd Mat Min Mat Min Mat Turns Passed 676 | 93 93 108 216 30 136 Spaces Moved 530 | 61 92 46 178 25 128 Core 3 | 3 . . . . . Treads . | . . . . . . Legs 66 | . . 34 32 . . Wheels 162 | 58 92 12 . . . Hover . | . . . . . . Flight 299 | . . . 146 25 128 Fastest Speed 30 | 50 100 100 32 32 30 Average Speed 66 | 99 100 114 49 32 41 Slowest Speed 200 | 150 100 120 120 32 200 Overloaded Moves . | . . . . . . Propulsion Burnouts . | . . . . . . Robots Hopped . | . . . . . . Potential Cave-ins . | . . . . . . Cave-ins Triggered 1 | . . . . . 1 Exploration Rate (%) 12 | 4 19 18 16 9 10 Regions Visited 5 Branch Regions 2 Pre-discovered Areas . | . . . . . . Known Exits Taken . | . . . . . . Unknown Exits Taken 5 | 1 1 1 1 1 . Scrap Searched . | . . . . . . Spaces Dug 16 | . . . . . 16 Terrain Destroyed 56 | . . . . . 56 Melee . | . . . . . . Projectile 4 | . . . . . 4 AOE 52 | . . . . . 52 Terrain Rammed . | . . . . . . Walls Destroyed . | . . . . . . Machines Disabled . | . . . . . . Actions | -11 -10 -10 -9 -9 -8 --------- Run | Yrd Mat Min Mat Min Mat Total 753 | 83 92 78 283 46 171 Wait 93 | 3 . . 62 18 10 Move 525 | 60 91 45 177 24 128 Hop . | . . . . . . Pick Up 23 | 7 . 5 10 . 1 Fast Attach 15 | 6 1 . . 1 7 Attach 6 | . . 3 2 . 1 Detach 1 | . . 1 . . . Swap 14 | . . 2 8 1 3 Drop 17 | . . 3 9 2 3 Fire 51 | 7 . 19 15 . 10 Melee 8 | . . . . . 8 Ram . | . . . . . . Kick . | . . . . . . Crush . | . . . . . . Escape Stasis . | . . . . . . Rewire . | . . . . . . Trap . | . . . . . . Miscellaneous . | . . . . . . Route ------- -11/Scrapyard -10/Materials -10/Mines -9/Materials -9/Mines -8/Materials History --------- Turn | Location | Event 28 | -11/Scrapyard | Discovered new exit (range 16) 94 | -11/Scrapyard | Entered Materials 172 | -10/Materials | Discovered new exit (range 10) 187 | -10/Materials | Entered Mines 190 | -10/Mines | Discovered new exit (range 11) 215 | -10/Mines | Met a Derelict bent on vengeance 295 | -10/Mines | Entered Materials 295 | -9/Materials | Evolved 2 slots: Propulsion x1, Utility x1 316 | -9/Materials | Build established: Mutant 510 | -9/Materials | Discovered new exit (range 6) 511 | -9/Materials | Entered Mines 520 | -9/Mines | YI-UF0 nonchalantly dropped a Grenade Launcher on the ground 531 | -9/Mines | Discovered new exit (range 13) 541 | -9/Mines | Entered Materials 541 | -8/Materials | Evolved 2 slots: Power x1, Utility x1 578 | -8/Materials | Crushed by falling debris 637 | -8/Materials | System corruption reached 10% 677 | -8/Materials | Self-destructed Last Messages --------------- 00672_ Acquired Surge Thruster. 00675_ Nuclear Reactor explodes. 00675_ Surge Thruster destroyed. 00675_ Destroyed Surge Thruster. 00675_ Grenade Launcher destroyed. 00675_ Destroyed Grenade Launcher. 00675_ Repair Station disabled. 00675_ Backup Laser I tumbles out of repair station. 00675_ Backup Plating I tumbles out of repair station. 00675_ Backup Propulsion I tumbles out of repair station. 00675_ Backup Plating I tumbles out of repair station. 00675_ Backup Laser I tumbles out of repair station. 00675_ Backup Propulsion I tumbles out of repair station. 00676_ W-25 Informer sends out distress signal. Map ----- +----------------------------------------------------+ | ???????????????????????????????? | | ???????????????????????????????? | | ???????????????????????????????? | | ???????????????????????????????? | | ???????????????????????????????? | | ???????????????????????????????? | | ???????????????????????????????? | | ???????????????????????????????? | | ???????????????????????????????? | | ???????????????????????????????? | | ???????????????????????????????? | | ???????????????????????????????? | | ?????????????? ????????????????? | | ??????????? ??????????????? | | ?????????? #?????????????? | | ?????????? #?????????????? | | ?????????? w#?????????????? | | ?????????# w#?????????????? | | ????????? ???????????????? | | ????????? ????????????????? | | ????????? ?????????????????? | | ????????? ??????????????????? | | ????##### ???????????????????? | | ?#### #????????????????????? | | ?# " " ##???????????????????? | | ?#! [@ #???????????????????? | | ?#[=[[ ##??????????????????? | | # ! #??????????????????? | | # #??????????????????? | | # ##??????????????????? | | # #???????????????????? | | # #???????????????????? | | # !/ #??????#????????????? | | # """ ###????? #????????????? | | # """ #?????? #????????????? | | # """ ##????? #????????????? | | # #????# ##???????????? | | #### ######## #???????????? | | ???# #???????????? | | ??#" H #???????????? | | ??## #???????????? | | ???# ###+### #???????????? | | ???# ## #??####???????????? | | ???# ## ##?????????????????? | | ??## ##[ #??????????????????? | | ??# # " #??????????????????? | | ??# " T #??????????????????? | | ??# " [# " #??????????????????? | | ??# # #??????????????????? | | ??# =[%#####??????????????????? | +----------------------------------------------------+ Best States ------------- Heat Dissipation 41 Energy Generation 12 Energy Capacity 265 Matter Stores 300 Matter Capacity 300 Sight Range 16 Terrain Scan Density 10 Evasion (%) 63 Item Schematics ----------------- None Robot Schematics ------------------ None Fabricated ------------ Nothing Repaired ---------- Nothing Studied --------- None Alien Tech Used ----------------- None Achievements -------------- A Problem For Future Me Challenges ------------ None Game ------ Seed ShieldModifiedThermoblaster Manual? 0 Play Time 00:22:11 Cumulative 39.2 hours Start 2025.12.15 @ 14:32:32 End 2025.12.15 @ 14:55:04 Sessions 1 Manual Loads 0 Difficulty Rogue Special Mode None Game No. 34 Rogue 34 Adventurer 0 Explorer 0 Win Type - Total 0 Types 0/0/0/0/0/0/0/0/0/0 Lore% 16 Gallery% 24 Achievement% 16 Wizard Run 0 Options --------- Layout 1 ASCII 0 Keyboard 0 Movement Mouse Keybinds 0 Fullscreen 1 Font 24/Smallcaps Map View 50x35 Zoom Use 0% Tactical HUD 1 Map Filters NONE Filters NONE Steam 1 RUN: e9e96fbf-9dbc-4648-af3e-7bbc034b92f0